bitfinex/quotes_SOLUSD_20260306
["timestamp","ask_amount","ask_price","bid_price","bid_amount"]
[1772776087447,39.93701362,87.638,87.571,0.5]
[1772776088225,39.93701362,87.638,87.574,0.5]
[1772776088636,3.63628391,87.62,87.574,0.5]
[1772776088839,0.28432314,87.619,87.574,0.5]
[1772776090531,11.41317994,87.618,87.576,0.5]
[1772776090935,39.94612979,87.618,87.576,0.5]
[1772776091745,11.4114868,87.631,87.577,0.5]
[1772776092535,28.528717,87.631,87.579,0.5]
[1772776093555,11.41044512,87.639,87.579,0.5]
[1772776093759,11.41044512,87.639,87.58,0.5]
[1772776094456,0.28432314,87.638,87.58,0.5]
[1772776094658,0.28432314,87.638,87.582,0.5]
[1772776094659,3.63929916,87.62,87.582,0.5]
[1772776094834,0.28432314,87.619,87.582,0.5]
[1772776095436,3.63929916,87.63,87.582,0.5]
[1772776095650,0.28432314,87.629,87.582,0.5]
[1772776096242,3.63929916,87.62,87.582,0.5]
[1772776097651,39.94567388,87.619,87.582,0.5]
[1772776098358,39.94567388,87.619,87.547,4.44921003]
[1772776098359,3.63929916,87.59,87.547,1e-08]
[1772776098539,0.28432314,87.618,87.549,0.5]
[1772776098540,3.63929916,87.6,87.549,0.5]
[1772776098740,0.28432314,87.589,87.549,0.5]
[1772776099762,11.41708909,87.588,87.549,0.5]
[1772776100154,39.95981183,87.588,87.551,0.5]
[1772776102643,39.95981183,87.588,87.553,0.5]
[1772776103256,11.41708909,87.588,87.553,0.5]
[1772776104365,3.63929916,87.59,87.547,1e-08]
[1772776104570,0.28432314,87.589,87.547,1e-08]
[1772776105365,0.28432314,87.589,87.531,0.5]
[1772776105563,0.28432314,87.588,87.532,0.5]
[1772776105762,0.28432314,87.579,87.532,0.5]
[1772776108553,39.9643746,87.578,87.532,0.5]
[1772776108746,39.9643746,87.578,87.533,11.42426284]
[1772776108976,39.9643746,87.578,87.534,0.5]
[1772776110578,40.24367876,87.589,87.536,0.5]
[1772776112877,39.95935562,87.589,87.538,0.5]
[1772776113252,11.41500388,87.604,87.541,0.5]
[1772776113456,11.41500388,87.604,87.542,0.5]
[1772776114860,28.5375097,87.604,87.545,0.5]
[1772776117074,0.28432314,87.616,87.548,0.5]
[1772776117979,39.9465857,87.617,87.551,0.5]
[1772776118178,11.4133102,87.617,87.551,0.5]
[1772776118571,11.41200771,87.627,87.551,0.5]
[1772776119254,39.93670693,87.639,87.557,0.5]
[1772776120080,39.93670693,87.639,87.559,0.5]
[1772776121076,11.41044512,87.639,87.559,0.5]
[1772776121260,0.28432314,87.649,87.564,0.5]
[1772776121577,28.52282013,87.65,87.571,0.5]
[1772776122287,11.40810203,87.657,87.573,0.5]
[1772776122687,11.40810203,87.657,87.575,0.5]
[1772776122866,11.40810203,87.657,87.577,0.5]
[1772776123067,11.40810203,87.657,87.579,0.5]
[1772776123267,39.92835711,87.657,87.584,0.5]
[1772776123968,11.40810203,87.657,87.587,0.5]
[1772776124168,11.40810203,87.657,87.59,0.5]
[1772776124469,11.40810203,87.657,87.593,0.5]
[1772776125286,0.1,87.67,87.6,0.5]
[1772776125783,0.28432314,87.669,87.6,0.5]
[1772776126186,0.28432314,87.639,87.593,0.5]
[1772776126390,3.63929916,87.65,87.593,0.5]
[1772776126688,0.28432314,87.649,87.593,0.5]
[1772776131783,39.93245709,87.648,87.595,0.5]
[1772776132489,3.63929916,87.64,87.595,0.5]
[1772776132786,39.93245709,87.648,87.595,0.5]
[1772776134594,39.93245709,87.648,87.594,39.95707468]
[1772776134595,39.93245709,87.648,87.597,0.5]
[1772776136072,3.63929916,87.64,87.597,0.5]
[1772776137282,40.22088106,87.639,87.598,11.41578574]
[1772776137481,40.22088106,87.639,87.599,0.5]
[1772776140103,40.22088106,87.639,87.6,11.41552511]
[1772776141004,3.63929916,87.63,87.583,0.5]
[1772776141694,40.22088106,87.639,87.583,11.41774088]
[1772776142005,40.22088106,87.639,87.584,0.5]
[1772776142797,0.28432314,87.629,87.584,0.5]
[1772776143005,3.63929916,87.62,87.584,0.5]
[1772776143206,0.28432314,87.619,87.578,0.5]
[1772776143992,39.94612979,87.618,87.578,0.5]
[1772776144495,39.94612979,87.618,87.58,0.5]
[1772776146296,3.63929916,87.61,87.58,0.5]
[1772776147098,11.4143524,87.609,87.58,0.5]
[1772776147502,39.95023341,87.609,87.574,0.5]
[1772776149307,28.53588101,87.609,87.575,11.41878389]
[1772776149609,3.63929916,87.61,87.545,0.5]
[1772776149912,3.63929916,87.61,87.545,28.55674224]
[1772776150105,39.94612979,87.618,87.549,0.5]
[1772776150896,39.94612979,87.618,87.55,0.5]
[1772776151099,39.94612979,87.618,87.553,0.5]
[1772776152611,39.94612979,87.618,87.556,0.5]
[1772776155124,39.94612979,87.618,87.558,0.5]
[1772776156223,11.41317994,87.618,87.561,0.5]
[1772776156425,11.41317994,87.618,87.562,0.5]
[1772776156725,0.28432314,87.599,87.556,0.5]
[1772776157312,39.95525011,87.598,87.558,0.5]
[1772776158931,39.95525011,87.598,87.56,0.5]
[1772776159810,11.41578574,87.598,87.56,0.5]
[1772776160424,39.95525011,87.598,87.56,0.5]
[1772776160606,39.95525011,87.598,87.539,0.5]
[1772776161219,39.95525011,87.598,87.535,28.55994759]
[1772776161220,0.28432314,87.589,87.541,0.5]
[1772776163131,0.28432314,87.587,87.541,0.5]
[1772776163526,39.95981183,87.588,87.543,0.5]
[1772776164427,0.28432314,87.587,87.525,4.772477]
[1772776164614,3.63949674,87.58,87.532,0.5]
[1772776164812,0.28432314,87.579,87.532,0.5]
[1772776165318,0.28432314,87.577,87.532,0.5]
[1772776165631,0.28432314,87.569,87.532,0.5]
[1772776166923,39.9643746,87.578,87.534,0.5]
[1772776169936,39.9643746,87.578,87.536,0.5]
[1772776172437,28.54598186,87.578,87.538,0.5]
[1772776174242,28.54598186,87.578,87.531,0.5]
[1772776174751,28.54598186,87.578,87.53,0.2]
[1772776174752,0.28432314,87.569,87.53,1e-08]
[1772776174930,0.28432314,87.559,87.53,1e-08]
[1772776176043,0.28432314,87.559,87.507,0.5]
[1772776176232,39.97806916,87.548,87.507,0.5]
[1772776176548,39.97806916,87.548,87.513,0.5]
[1772776180325,28.55576369,87.548,87.513,0.5]
[1772776180530,28.55576369,87.548,87.5,91.56]
[1772776180531,0.28432314,87.547,87.501,0.5]
[1772776181051,28.55576369,87.548,87.501,0.5]
[1772776181052,28.55576369,87.548,87.502,0.5]
[1772776182748,0.28432314,87.559,87.504,0.5]
[1772776183150,39.96802556,87.57,87.504,0.5]
[1772776183462,0.28432314,87.569,87.504,0.5]
[1772776184161,43.6075223,87.57,87.504,0.5]
[1772776184162,39.96802556,87.57,87.505,0.5]
[1772776184462,0.28432314,87.569,87.505,0.5]
[1772776185039,39.96893842,87.568,87.507,0.5]
[1772776186146,11.41695875,87.589,87.511,0.5]
[1772776186958,28.54239687,87.589,87.513,0.5]
[1772776187163,11.41591607,87.597,87.517,0.5]
[1772776189565,0.28432314,87.609,87.523,0.5]
[1772776190065,39.94749756,87.615,87.523,0.5]
[1772776190270,39.94749756,87.615,87.528,0.5]
[1772776190565,11.41357073,87.615,87.53,0.5]
[1772776190743,11.41357073,87.615,87.534,0.5]
[1772776191155,11.41357073,87.615,87.536,0.5]
[1772776191539,0.14216157,87.625,87.541,0.5]
[1772776191765,0.14216157,87.625,87.542,0.5]
[1772776192261,0.28432314,87.625,87.542,0.5]
[1772776193243,0.14216157,87.625,87.542,0.5]
[1772776194754,0.14216157,87.619,87.544,0.14216157]
[1772776194954,0.14216157,87.619,87.545,0.5]
[1772776195462,0.28432314,87.599,87.545,0.5]
[1772776196971,39.95525011,87.598,87.547,0.5]
[1772776197566,3.63949674,87.59,87.547,0.5]
[1772776197766,39.95525011,87.598,87.547,0.5]
[1772776199169,3.63949674,87.59,87.54,0.5]
[1772776199351,3.63949674,87.58,87.54,0.5]
[1772776199752,3.63949674,87.58,87.531,0.5]
[1772776199753,0.28432314,87.579,87.531,0.5]
[1772776199956,3.63949674,87.57,87.531,0.5]
[1772776200157,0.28432314,87.579,87.531,0.5]
[1772776200559,0.28432314,87.569,87.525,11.42522485]
[1772776200754,0.28432314,87.569,87.529,16.05678998]
[1772776200967,0.28432314,87.569,87.53,0.5]
[1772776201367,39.96893842,87.568,87.532,0.5]
[1772776201572,148.40521472,87.598,87.532,0.5]
[1772776201573,0.28432314,87.589,87.532,0.5]
[1772776202352,0.28432314,87.579,87.532,0.5]
[1772776202874,0.28432314,87.579,87.531,11.42452388]
[1772776202875,3.63949674,87.57,87.531,11.42452388]
[1772776203771,39.96848199,87.569,87.531,11.42452388]
[1772776204069,39.96848199,87.569,87.529,4.63208616]
[1772776206267,39.96848199,87.569,87.531,0.5]
[1772776207564,11.41956628,87.569,87.531,0.5]
[1772776208476,40.10616756,87.579,87.533,0.5]
[1772776208774,11.41826236,87.579,87.533,0.5]
[1772776209774,39.96391828,87.579,87.533,0.5]
[1772776209955,3.63949674,87.57,87.529,4.63208616]
[1772776210272,0.28432314,87.569,87.529,4.63208616]
[1772776210460,39.96893842,87.568,87.53,11.4246544]
[1772776211566,39.96893842,87.568,87.532,11.92439336]
[1772776211774,39.96893842,87.568,87.533,0.5]
[1772776211959,39.96893842,87.568,87.529,4.63208616]
[1772776213078,39.96893842,87.568,87.53,0.5]
[1772776213756,39.96893842,87.568,87.529,4.63208616]
[1772776215864,39.96893842,87.568,87.531,0.5]
[1772776218473,39.96893842,87.568,87.532,11.42439336]
[1772776218673,39.96893842,87.568,87.533,0.5]
[1772776225404,39.96893842,87.568,87.535,0.5]
[1772776229408,11.41969669,87.568,87.536,11.42387132]
[1772776229579,11.41969669,87.568,87.537,0.5]
[1772776229784,28.54549185,87.58,87.539,0.5]
[1772776229993,11.41721945,87.587,87.539,0.5]
[1772776230390,11.41565542,87.599,87.539,0.5]
[1772776230714,39.95479399,87.599,87.539,0.5]
[1772776231081,3.64339151,87.59,87.539,0.5]
[1772776231278,0.28432314,87.579,87.539,0.5]
[1772776232689,39.9643746,87.578,87.539,0.5]
[1772776233009,39.9643746,87.578,87.541,0.5]
[1772776234108,11.41708909,87.588,87.541,0.5]
[1772776235037,11.41617672,87.595,87.543,0.5]
[1772776235598,11.41617672,87.595,87.544,0.5]
[1772776236232,39.95661852,87.595,87.544,0.5]
[1772776237340,3.64339151,87.59,87.546,0.5]
[1772776238131,0.28432314,87.589,87.546,0.5]
[1772776239127,39.95981183,87.588,87.546,0.5]
[1772776239732,39.95981183,87.588,87.548,0.5]
[1772776240535,11.41708909,87.588,87.548,0.5]
[1772776241217,40.23911713,87.599,87.548,0.5]
[1772776241413,40.23911713,87.599,87.55,0.5]
[1772776244626,40.23911713,87.599,87.552,0.5]
[1772776244927,39.95479399,87.599,87.552,0.5]
[1772776246922,39.95479399,87.599,87.553,39.97578609]
[1772776247115,39.95479399,87.599,87.554,0.5]
[1772776252219,39.95479399,87.599,87.556,0.5]
[1772776253239,11.41565542,87.599,87.556,0.5]
[1772776253736,11.41174725,87.629,87.558,0.5]
[1772776253909,11.41174725,87.629,87.559,0.28432314]
[1772776254113,11.41174725,87.629,87.56,0.5]
[1772776254312,39.93680271,87.639,87.565,0.5]
[1772776254522,11.41044512,87.639,87.568,0.5]
[1772776255718,39.93655792,87.639,87.568,0.5]
[1772776256638,39.93655792,87.639,87.574,0.5]
[1772776259838,39.93655792,87.639,87.576,0.5]
[1772776260342,3.64339151,87.63,87.576,0.5]
[1772776261015,3.64339151,87.61,87.576,0.5]
[1772776261234,3.64339151,87.61,87.57,11.91933968]
[1772776261630,3.64339151,87.61,87.571,0.5]
[1772776261937,39.95023341,87.609,87.571,0.5]
[1772776263035,39.95023341,87.609,87.573,0.5]
[1772776265928,0.28432314,87.619,87.575,0.5]
[1772776268428,39.94612979,87.618,87.575,0.5]
[1772776269341,11.41317994,87.618,87.577,0.5]
[1772776270628,28.52984918,87.628,87.579,0.5]
[1772776274149,28.52984918,87.628,87.581,0.5]
[1772776276531,3.63875865,87.62,87.583,0.5]
[1772776278841,39.94567388,87.619,87.583,0.5]
[1772776282848,39.94567388,87.619,87.585,0.5]
[1772776283341,28.5326242,87.619,87.585,0.5]
[1772776285152,0.49941594,87.608,87.533,3.69383402]
[1772776285354,0.49941594,87.608,87.531,102.0]
[1772776285547,0.49941594,87.606,87.535,3.69383402]
[1772776287035,0.49941594,87.606,87.536,0.14216157]
[1772776287238,0.49941594,87.606,87.537,0.45864168]
[1772776287855,0.49941594,87.604,87.542,0.45864168]
[1772776288063,0.49941594,87.604,87.543,0.45864168]
[1772776290056,0.49529921,87.602,87.546,0.47676811]
[1772776290770,11.41513418,87.603,87.546,0.47676811]
[1772776291544,0.49529921,87.608,87.546,0.47676811]
[1772776291951,11.90990191,87.608,87.549,0.48395708]
[1772776292137,11.4146027,87.608,87.549,0.48395708]
[1772776292858,0.49529921,87.607,87.549,0.48395708]
[1772776295664,0.49529921,87.605,87.552,0.48395708]
[1772776297566,11.41474328,87.606,87.552,0.48395708]
[1772776297764,11.41474328,87.606,87.555,0.48395708]
[1772776297765,0.49529921,87.605,87.555,0.48395708]
[1772776298353,0.49529921,87.589,87.544,0.48395708]
[1772776298671,0.49529921,87.588,87.544,0.48395708]
[1772776300160,0.49529921,87.586,87.546,0.48395708]
[1772776302252,0.49529921,87.584,87.548,0.48395708]
[1772776304375,11.41774088,87.583,87.55,0.48395708]
[1772776304551,11.4168284,87.59,87.55,0.48395708]
[1772776305062,0.49529921,87.589,87.55,0.48395708]
[1772776305372,0.49529921,87.588,87.55,0.48395708]
[1772776305758,0.49529921,87.61,87.551,0.48395708]
[1772776306956,0.49529921,87.599,87.553,0.48395708]
[1772776307351,0.49529921,87.598,87.553,0.48395708]
[1772776308256,0.49529921,87.596,87.555,0.48395708]
[1772776310984,0.49529921,87.594,87.557,0.48395708]
[1772776311164,11.41617672,87.595,87.557,0.48395708]
[1772776313694,0.49529921,87.612,87.559,0.48395708]
[1772776314276,11.41430254,87.61,87.559,0.48395708]
[1772776314479,0.49529921,87.609,87.559,0.48395708]
[1772776315985,0.49529921,87.607,87.561,0.48395708]
[1772776318691,11.41474328,87.606,87.562,11.4204792]
[1772776318879,0.49529921,87.605,87.563,0.48395708]
[1772776320991,0.47331127,87.603,87.564,11.42021835]
[1772776321288,0.47331127,87.598,87.55,0.45429314]
[1772776323192,45.62447999,87.673,87.556,4.82477569]
[1772776323387,0.1,87.69,87.581,0.48665563]
[1772776323388,1e-08,87.67,87.581,0.48665563]
[1772776323575,1e-08,87.67,87.599,0.48665563]
[1772776323776,1e-08,87.67,87.604,0.48665563]
[1772776324097,11.4054213,87.678,87.609,0.28432314]
[1772776324286,11.4054213,87.678,87.612,3.69383402]
[1772776324486,11.40393892,87.689,87.614,0.48665563]
[1772776324670,11.40393892,87.689,87.619,0.77097877]
[1772776324876,11.40393892,87.689,87.62,0.48665563]
[1772776325102,0.1,87.69,87.625,0.48665563]
[1772776325284,0.1,87.69,87.626,0.48665563]
[1772776327295,0.1,87.69,87.629,0.48665563]
[1772776329686,7.19799476,87.699,87.635,0.48665563]
[1772776329893,11.42784686,87.711,87.635,0.48665563]
[1772776330280,0.02668873,87.719,87.639,3.69383402]
[1772776330497,0.1,87.72,87.65,0.48665563]
[1772776330696,0.1,87.73,87.65,0.48665563]
[1772776330898,11.39873929,87.729,87.65,0.48665563]
[1772776331101,0.1,87.73,87.65,0.48665563]
[1772776331795,0.1,87.73,87.655,0.48665563]
[1772776332001,0.1,87.73,87.656,0.48665563]
[1772776332199,11.39653089,87.746,87.662,0.48665563]
[1772776332501,0.02668873,87.745,87.662,0.48665563]
[1772776334079,0.02668873,87.745,87.657,4.82477569]
[1772776334080,0.02668873,87.745,87.668,0.48665563]
[1772776336383,0.02668873,87.745,87.673,0.28432314]
[1772776336603,0.02668873,87.745,87.674,0.48665563]
[1772776336901,0.1,87.75,87.681,0.48665563]
[1772776337084,0.1,87.75,87.683,0.48665563]
[1772776337290,0.1,87.75,87.685,0.48665563]
[1772776337588,0.1,87.75,87.687,0.48665563]
[1772776337906,0.1,87.75,87.689,0.48665563]
[1772776338306,0.1,87.75,87.697,0.48665563]
[1772776338603,0.02668873,87.753,87.698,0.48665563]
[1772776339412,7.40541701,87.754,87.698,0.48665563]
[1772776339894,0.02668873,87.752,87.698,0.48665563]
[1772776340090,11.3956218,87.753,87.693,11.89007437]
[1772776340091,0.02668873,87.748,87.693,11.89007437]
[1772776340296,0.02668873,87.738,87.693,11.89007437]
[1772776340599,0.02668873,87.737,87.693,11.89007437]
[1772776341108,0.02668873,87.737,87.688,11.40400803]
[1772776341287,0.02668873,87.728,87.679,0.48665563]
[1772776341599,0.02668873,87.718,87.672,0.48665563]
[1772776342890,0.02668873,87.717,87.674,0.48665563]
[1772776343585,11.3999736,87.72,87.674,0.48665563]
[1772776343785,11.3999736,87.72,87.675,0.48665563]
[1772776343986,0.02668873,87.731,87.675,0.48665563]
[1772776344203,0.02668873,87.744,87.678,0.48665563]
[1772776344707,0.02668873,87.743,87.678,0.48665563]
[1772776345215,0.02668873,87.743,87.681,0.48665563]
[1772776346283,0.02668873,87.738,87.681,0.48665563]
[1772776347003,0.02668873,87.738,87.683,0.48665563]
[1772776347603,0.02668873,87.738,87.684,0.48665563]
[1772776349602,0.02668873,87.738,87.686,0.48665563]
[1772776351004,0.02668873,87.738,87.688,0.49176287]
[1772776352297,0.02668873,87.738,87.687,11.40419902]
[1772776352502,0.02668873,87.719,87.677,0.49176287]
[1772776352992,0.02668873,87.719,87.679,0.49176287]
[1772776352993,0.02668873,87.718,87.679,0.49176287]
[1772776355308,0.02668873,87.718,87.68,11.40510948]
[1772776355494,0.02668873,87.718,87.681,0.49176287]
[1772776355897,9.06957279,87.71,87.655,0.49176287]
[1772776356102,0.02668873,87.698,87.648,0.49176287]
[1772776357500,0.02668873,87.698,87.65,0.49176287]
[1772776358323,0.02668873,87.707,87.65,0.49176287]
[1772776359420,0.02668873,87.707,87.652,0.49176287]
[1772776360804,0.02668873,87.707,87.653,0.49176287]
[1772776361597,0.02668873,87.707,87.655,0.77608601]
[1772776361902,0.02668873,87.707,87.656,0.49176287]
[1772776364932,0.02668873,87.707,87.658,0.49176287]
[1772776367822,0.02668873,87.689,87.646,11.4095338]
[1772776368121,0.02668873,87.689,87.647,0.49176287]
[1772776368925,0.02668873,87.688,87.649,0.49176287]
[1772776369597,11.40393892,87.689,87.649,0.49176287]
[1772776370922,0.02668873,87.696,87.651,0.49176287]
[1772776372136,0.02668873,87.705,87.652,0.49176287]
[1772776372927,0.02668873,87.705,87.653,39.93017922]
[1772776373129,28.50193066,87.714,87.655,0.49176287]
[1772776373130,0.02668873,87.699,87.655,0.49176287]
[1772776374430,0.02668873,87.707,87.655,0.49176287]
[1772776375711,0.02668873,87.707,87.657,0.49176287]
[1772776377111,0.02668873,87.699,87.65,0.49176287]
[1772776377315,0.02668873,87.698,87.65,0.49176287]
[1772776377815,0.02668873,87.698,87.652,0.49176287]
[1772776380615,0.02668873,87.698,87.654,0.48665563]
[1772776382717,0.02668873,87.698,87.656,0.48665563]
[1772776383820,0.02668873,87.698,87.657,11.40810203]
[1772776384019,0.02668873,87.698,87.658,0.48665563]
[1772776385446,0.02668873,87.707,87.658,0.48665563]
[1772776386841,0.02668873,87.707,87.66,0.48665563]
[1772776389235,0.02668873,87.707,87.661,11.40758147]
[1772776389443,0.02668873,87.707,87.662,0.48665563]
[1772776390350,0.02668873,87.707,87.663,11.40732121]
[1772776390522,0.02668873,87.707,87.664,0.48665563]
[1772776392727,0.02668873,87.707,87.666,0.48665563]
[1772776392932,0.02668873,87.689,87.643,0.48665563]
[1772776394849,0.02668873,87.689,87.645,0.48665563]
[1772776397956,0.02668873,87.689,87.647,0.48665563]
[1772776399768,0.02668873,87.689,87.649,0.48665563]
[1772776402136,0.02668873,87.689,87.651,0.48665563]
[1772776406454,0.02668873,87.688,87.644,11.40974468]
[1772776406651,0.02668873,87.688,87.64,0.48665563]
[1772776407350,0.28432314,87.689,87.64,0.48665563]
[1772776407351,0.02668873,87.678,87.64,0.48665563]
[1772776408059,0.02668873,87.678,87.606,0.14216157]
[1772776408060,0.02668873,87.668,87.631,0.48665563]
[1772776408269,0.02668873,87.668,87.625,0.48665563]
[1772776408446,0.02668873,87.667,87.625,0.48665563]
[1772776409645,0.02668873,87.667,87.618,0.48665563]
[1772776409953,0.02668873,87.658,87.615,0.48665563]
[1772776410881,0.02668873,87.657,87.616,0.48665563]
[1772776411363,11.40797189,87.658,87.616,0.48665563]
[1772776412963,28.51678437,87.668,87.618,0.48665563]
[1772776412964,0.02668873,87.659,87.618,0.48665563]
[1772776414267,0.02668873,87.659,87.62,0.48665563]
[1772776415848,0.02668873,87.659,87.606,0.48665563]
[1772776416062,0.02668873,87.648,87.606,0.48665563]
[1772776417163,39.95914582,87.648,87.606,0.48665563]
[1772776417370,0.02668873,87.647,87.606,0.48665563]
[1772776417867,39.93245709,87.648,87.597,0.48665563]
[1772776417868,0.02668873,87.638,87.597,0.48665563]
[1772776418967,0.02668873,87.637,87.591,0.48665563]
[1772776421482,0.02668873,87.637,87.593,0.48665563]
[1772776422051,3.63286798,87.63,87.593,0.48665563]
[1772776422262,0.02668873,87.629,87.593,0.48665563]
[1772776424662,0.02668873,87.629,87.595,0.48665563]
[1772776425485,0.47774007,87.704,87.594,11.41630705]
[1772776425778,0.47774007,87.702,87.613,3.69383402]
[1772776426077,0.47774007,87.699,87.617,3.69383402]
[1772776426293,0.47774007,87.689,87.619,0.4]
[1772776426661,0.47774007,87.698,87.625,0.4]
[1772776427859,0.47774007,87.698,87.628,0.4]
[1772776428060,0.47774007,87.698,87.63,0.4]
[1772776428555,0.47774007,87.726,87.634,3.69383402]
[1772776428758,0.47774007,87.726,87.636,0.4]
[1772776428955,5.95219582,87.741,87.638,0.14216157]
[1772776429157,11.39140402,87.786,87.646,5.30545096]
[1772776429365,7.22206878,87.809,87.672,3.69383402]
[1772776429557,11.38910091,87.804,87.701,3.69383402]
[1772776429770,7.22206878,87.809,87.709,4.17450929]
[1772776430075,7.22206878,87.809,87.714,0.48067527]
[1772776430076,11.38848396,87.808,87.714,0.48067527]
[1772776430654,28.46868476,87.816,87.719,0.48067527]
[1772776430854,28.46868476,87.816,87.716,0.28432314]
[1772776430855,11.38705747,87.819,87.722,0.48067527]
[1772776431275,0.47774007,87.818,87.722,0.48067527]
[1772776431480,0.47774007,87.818,87.724,0.48067527]
[1772776431986,0.47774007,87.817,87.726,0.48067527]
[1772776432361,0.47774007,87.817,87.728,0.48067527]
[1772776432563,0.47774007,87.817,87.731,3.69383402]
[1772776432761,0.47774007,87.817,87.743,0.48067527]
[1772776432964,0.47774007,87.817,87.747,0.48067527]
[1772776433462,0.47774007,87.817,87.749,0.48067527]
[1772776433664,0.57774007,87.84,87.754,0.48067527]
[1772776433865,0.57774007,87.84,87.764,0.48067527]
[1772776434085,0.57774007,87.84,87.769,0.48067527]
[1772776434777,0.57774007,87.84,87.774,0.48067527]
[1772776434981,0.1,87.84,87.775,0.48067527]
[1772776435180,1e-08,87.824,87.776,0.48067527]
[1772776436983,1e-08,87.824,87.781,0.48067527]
[1772776437168,1e-08,87.824,87.782,0.48067527]
[1772776438976,0.1,87.84,87.782,0.48067527]
[1772776439177,0.1,87.84,87.777,187.97634912]
[1772776439178,0.1,87.84,87.788,0.48067527]
[1772776439378,0.57774007,87.84,87.788,0.48067527]
[1772776441074,0.48909653,87.838,87.79,0.46934348]
[1772776442081,0.48909653,87.838,87.789,39.86832063]
[1772776442472,0.48909653,87.838,87.79,0.46934348]
[1772776443266,0.48909653,87.838,87.791,39.86741237]
[1772776443473,0.48909653,87.836,87.791,39.86741237]
[1772776444372,0.48909653,87.836,87.792,0.46934348]
[1772776445486,0.48909653,87.836,87.794,0.46934348]
[1772776446468,0.48909653,87.835,87.794,0.46934348]
[1772776446673,0.48909653,87.829,87.78,11.39211665]
[1772776446898,0.48909653,87.829,87.78,39.87240828]
[1772776447079,0.48909653,87.829,87.78,40.34175176]
[1772776447276,0.48909653,87.829,87.781,0.46934348]
[1772776447477,0.48909653,87.827,87.782,39.87149985]
[1772776447791,0.48909653,87.827,87.782,40.34084333]
[1772776447974,0.48909653,87.827,87.782,11.3918571]
[1772776448370,0.48909653,87.827,87.782,39.87149985]
[1772776448797,0.48909653,87.827,87.782,11.3918571]
[1772776449676,0.48909653,87.809,87.771,11.10833024]
[1772776449883,0.48909653,87.799,87.772,11.39315499]
[1772776450315,11.38614988,87.826,87.773,0.46934348]
[1772776450483,0.28432314,87.825,87.773,0.46934348]
[1772776451207,0.28432314,87.825,87.772,11.39315499]
[1772776451208,9.0565164,87.81,87.772,11.39315499]
[1772776451582,9.0565164,87.82,87.772,11.39315499]
[1772776452187,0.48909653,87.817,87.772,11.39315499]
[1772776452388,0.48909653,87.817,87.773,0.46934348]
[1772776453804,11.38712838,87.819,87.773,0.46934348]
[1772776454305,11.87622491,87.819,87.773,0.46934348]
[1772776454801,0.48909653,87.818,87.774,39.87513386]
[1772776454994,0.48909653,87.818,87.775,0.46934348]
[1772776456010,0.48909653,87.838,87.776,0.46934348]
[1772776457005,0.48909653,87.836,87.779,0.46934348]
[1772776459106,0.48909653,87.836,87.781,0.46934348]
[1772776459317,0.48909653,87.836,87.782,0.46934348]
[1772776460320,0.48909653,87.835,87.782,0.46934348]
[1772776461613,0.48909653,87.835,87.785,0.46934348]
[1772776461816,0.58909653,87.84,87.785,0.46934348]
[1772776462314,0.48909653,87.838,87.785,0.46934348]
[1772776463436,0.1,87.84,87.788,0.46934348]
[1772776463437,0.48909653,87.836,87.788,0.46934348]
[1772776464117,9.19568917,87.86,87.787,0.28432314]
[1772776464118,28.44327232,87.895,87.79,0.28432314]
[1772776464321,11.37798814,87.889,87.793,0.46934348]
[1772776464493,11.37798814,87.889,87.805,0.46934348]
[1772776464893,11.37798814,87.889,87.808,0.46934348]
[1772776465417,28.44246379,87.897,87.815,0.46934348]
[1772776466304,0.34406688,87.889,87.815,0.46934348]
[1772776467016,0.34406688,87.887,87.822,0.46934348]
[1772776468634,0.34406688,87.894,87.825,0.46934348]
[1772776468932,11.37747033,87.893,87.833,0.28432314]
[1772776469133,11.37747033,87.893,87.834,0.46934348]
[1772776469520,0.34406688,87.889,87.834,0.46934348]
[1772776470023,0.34406688,87.904,87.834,0.46934348]
[1772776470229,11.37649983,87.901,87.834,0.46934348]
[1772776470422,11.37649983,87.901,87.836,0.47559151]
[1772776470622,11.37649983,87.901,87.837,0.47559151]
[1772776470954,0.34406688,87.889,87.839,0.47559151]
[1772776472230,0.34406688,87.879,87.838,11.38459436]
[1772776472621,0.34406688,87.859,87.787,0.47559151]
[1772776472823,0.34406688,87.839,87.787,0.47559151]
[1772776473027,0.34406688,87.837,87.789,0.47559151]
[1772776473542,0.34406688,87.829,87.789,0.47559151]
[1772776473720,0.34406688,87.829,87.788,11.3910785]